fUST/lending_fUST_20250103
["ID","MTS","AMOUNT","RATE_DAILY","PERIOD"]
[347475265,1735851041380,-500.0,0.00019452,3]
[347475266,1735851041391,-500.0,0.00019452,3]
[347475267,1735851041400,-500.0,0.00019452,3]
[347475268,1735851041409,-500.0,0.00019452,3]
[347475269,1735851041418,-500.0,0.00019452,3]
[347475270,1735851041427,-641.91,0.00019452,3]
[347475271,1735851041436,-801.15,0.00019452,3]
[347475272,1735851041445,-500.0,0.00019452,3]
[347475273,1735851041454,-500.0,0.00019452,3]
[347475274,1735851041463,-500.0,0.00019452,3]
[347475275,1735851041472,-500.0,0.00019452,3]
[347475276,1735851041481,-500.0,0.00019452,3]
[347475277,1735851041491,-500.0,0.00019452,3]
[347475278,1735851041500,-500.0,0.00019452,3]
[347475279,1735851041509,-168.0,0.00019452,3]
[347475280,1735851041519,-500.0,0.00019452,3]
[347475281,1735851041528,-500.0,0.00019452,3]
[347475282,1735851041537,-500.0,0.00019452,3]
[347475283,1735851041546,-502.09545608,0.00019452,3]
[347475284,1735851041555,-500.0,0.00019452,3]
[347475285,1735851041564,-500.0,0.00019452,3]
[347475286,1735851041574,-500.0,0.00019452,3]
[347475287,1735851041583,-500.0,0.00019452,3]
[347475288,1735851041592,-536.97,0.00019452,3]
[347475289,1735851041601,-500.0,0.00019452,3]
[347475290,1735851041610,-500.0,0.00019452,3]
[347475291,1735851041619,-500.0,0.00019452,3]
[347475292,1735851041628,-500.0,0.00019452,3]
[347475293,1735851041637,-500.0,0.00019452,3]
[347475294,1735851041647,-635.40126605,0.00019452,3]
[347475295,1735851041656,-228.51,0.00019452,3]
[347475296,1735851041665,-14335.29,0.00019452,3]
[347475297,1735851041674,-1213.81,0.00019452,3]
[347475298,1735851041683,-579.1458991,0.00019452,3]
[347475299,1735851041692,-500.0,0.00019452,3]
[347475300,1735851041701,-500.0,0.00019452,3]
[347475301,1735851041710,-3453.29,0.00019452,3]
[347475302,1735851041719,-500.0,0.00019452,3]
[347475303,1735851041728,-683.2,0.00019452,3]
[347475304,1735851041737,-1552.34,0.00019452,3]
[347475305,1735851041746,-633.84,0.00019452,3]
[347475306,1735851041755,-500.0,0.00019452,3]
[347475307,1735851041764,-500.0,0.00019452,3]
[347475308,1735851041774,-500.0,0.00019452,3]
[347475309,1735851041783,-500.0,0.00019452,3]
[347475310,1735851041792,-500.0,0.00019452,3]
[347475311,1735851041801,-500.0,0.00019452,3]
[347475312,1735851041810,-500.0,0.00019452,3]
[347475313,1735851041819,-500.0,0.00019452,3]
[347475314,1735851041828,-500.0,0.00019452,3]
[347475315,1735851041837,-188.0,0.00019452,2]
[347475316,1735851041846,-500.0,0.00019452,3]
[347475317,1735851041856,-548.78,0.00019452,3]
[347475318,1735851041866,-500.0,0.00019452,3]
[347475319,1735851041875,-550.37349741,0.00019452,3]
[347475320,1735851041884,-500.0,0.00019452,3]
[347475321,1735851041893,-631.51,0.00019452,2]
[347475322,1735851041902,-500.0,0.00019452,2]
[347475323,1735851041911,-500.0,0.00019452,3]
[347475324,1735851041920,-967.16,0.00019452,3]
[347475325,1735851041930,-500.0,0.00019452,3]
[347475326,1735851041948,-2884.33,0.00019452,3]
[347475327,1735851041957,-643.02,0.00019452,3]
[347475328,1735851041967,-500.0,0.00019452,3]
[347475329,1735851041976,-500.0,0.00019452,3]
[347475330,1735851041987,-500.0,0.00019452,3]
[347475331,1735851041996,-500.0,0.00019452,3]
[347475332,1735851042005,-500.0,0.00019452,3]
[347475333,1735851042015,-566.68,0.00019452,3]
[347475334,1735851042023,-500.0,0.00019452,3]
[347475335,1735851042032,-500.0,0.00019452,3]
[347475336,1735851042041,-1039.17,0.00019452,3]
[347475337,1735851042050,-500.0,0.00019452,3]
[347475338,1735851042059,-500.0,0.00019452,3]
[347475339,1735851042068,-3385.58,0.00019452,3]
[347475340,1735851042077,-500.0,0.00019452,3]
[347475341,1735851042086,-500.0,0.00019452,3]
[347475342,1735851042095,-513.99541696,0.00019452,3]
[347475343,1735851042105,-1666.93,0.00019452,3]
[347475344,1735851042114,-500.0,0.00019452,3]
[347475345,1735851042123,-500.0,0.00019452,3]
[347475346,1735851042132,-500.0,0.00019452,3]
[347475347,1735851042141,-500.0,0.00019452,3]
[347475348,1735851042150,-1173.72,0.00019452,3]
[347475349,1735851042159,-513.23,0.00019452,3]
[347475350,1735851042168,-500.0,0.00019452,3]
[347475351,1735851042177,-2064.1,0.00019452,3]
[347475352,1735851042187,-500.0,0.00019452,3]
[347475353,1735851042196,-500.0,0.00019452,3]
[347475354,1735851042205,-500.0,0.00019452,3]
[347475355,1735851042214,-284.81273788,0.00019452,3]
[347475356,1735851042223,-500.0,0.00019452,3]
[347475357,1735851042232,-500.0,0.00019452,3]
[347475358,1735851042241,-500.0,0.00019452,3]
[347475359,1735851042250,-500.0,0.00019452,3]
[347475360,1735851042259,-741.161,0.0001952,2]
[347475361,1735851042268,-500.0,0.00019725,3]
[347475362,1735851042277,-500.0,0.00019725,3]
[347475363,1735851042286,-713.14,0.00019726,3]
[347475364,1735851042295,-500.0,0.00019726,3]
[347475365,1735851042305,-500.0,0.00019726,3]
[347475366,1735851042314,-500.0,0.00019726,3]
[347475367,1735851042323,-500.0,0.00019726,3]
[347475368,1735851042331,-500.0,0.00019726,3]
[347475369,1735851042340,-571.63,0.00019726,3]
[347475370,1735851042349,-500.0,0.00019726,3]
[347475371,1735851042359,-641.91,0.00019726,3]
[347475372,1735851042367,-500.0,0.00019726,3]
[347475373,1735851042377,-801.15,0.00019726,3]
[347475374,1735851042386,-500.0,0.00019726,3]
[347475375,1735851042395,-500.0,0.00019726,3]
[347475376,1735851042404,-500.0,0.00019726,3]
[347475377,1735851042414,-500.0,0.00019726,3]
[347475378,1735851042423,-159.7,0.00019726,3]
[347475379,1735851042433,-500.0,0.00019726,3]
[347475380,1735851042442,-536.97,0.00019726,3]
[347475381,1735851042452,-500.0,0.00019726,3]
[347475382,1735851042461,-500.0,0.00019726,3]
[347475383,1735851042471,-500.0,0.00019726,3]
[347475384,1735851042481,-14335.29,0.00019726,3]
[347475385,1735851042491,-1213.81,0.00019726,3]
[347475386,1735851042500,-500.0,0.00019726,3]
[347475387,1735851042510,-3453.29,0.00019726,3]
[347475388,1735851042519,-500.0,0.00019726,3]
[347475389,1735851042529,-683.2,0.00019726,3]
[347475390,1735851042538,-1552.34,0.00019726,3]
[347475391,1735851042547,-633.84,0.00019726,3]
[347475392,1735851042557,-500.0,0.00019726,3]
[347475393,1735851042567,-500.0,0.00019726,3]
[347475394,1735851042576,-500.0,0.00019726,3]
[347475395,1735851042586,-175.2,0.00019726,3]
[347475396,1735851042595,-500.0,0.00019726,3]
[347475397,1735851042605,-175.2,0.00019726,3]
[347475398,1735851042614,-495.69,0.00019726,3]
[347475399,1735851042623,-548.78,0.00019726,3]
[347475400,1735851042632,-500.0,0.00019726,3]
[347475401,1735851042641,-631.51,0.00019726,2]
[347475402,1735851042651,-500.0,0.00019726,3]
[347475403,1735851042660,-967.16,0.00019726,3]
[347475404,1735851042670,-2884.33,0.00019726,3]
[347475405,1735851042679,-643.02,0.00019726,3]
[347475406,1735851042689,-500.0,0.00019726,3]
[347475407,1735851042698,-500.0,0.00019726,3]
[347475408,1735851042708,-500.0,0.00019726,3]
[347475409,1735851042717,-566.68,0.00019726,3]
[347475410,1735851042726,-500.0,0.00019726,3]
[347475411,1735851042735,-500.0,0.00019726,3]
[347475412,1735851042744,-1039.17,0.00019726,3]
[347475413,1735851042753,-500.0,0.00019726,3]
[347475414,1735851042762,-500.0,0.00019726,3]
[347475415,1735851042772,-3385.58,0.00019726,3]
[347475416,1735851042781,-500.0,0.00019726,3]
[347475417,1735851042790,-500.0,0.00019726,3]
[347475418,1735851042799,-1666.93,0.00019726,3]
[347475419,1735851042808,-500.0,0.00019726,3]
[347475420,1735851042817,-500.0,0.00019726,3]
[347475421,1735851042826,-500.0,0.00019726,3]
[347475422,1735851042835,-1173.72,0.00019726,3]
[347475423,1735851042844,-513.23,0.00019726,3]
[347475424,1735851042853,-500.0,0.00019726,3]
[347475425,1735851042862,-2064.1,0.00019726,3]
[347475426,1735851042873,-468.03186624,0.00019726,3]
[347475427,1735851042883,-500.0,0.00019726,3]
[347475428,1735851042892,-500.0,0.00019726,3]
[347475429,1735851042902,-500.0,0.00019726,3]
[347475430,1735851042911,-500.0,0.00019726,3]
[347475431,1735851042920,-705.3495124,0.00019726,2]
[347475432,1735851042929,-420.0,0.00019764,2]
[347475433,1735851042943,-500.0,0.00019821,7]
[347475434,1735851042952,-500.0,0.00019821,7]
[347475435,1735851042961,-500.0,0.00019821,7]
[347475436,1735851042973,-500.0,0.00019821,7]
[347475437,1735851042982,-500.0,0.00019821,7]
[347475438,1735851042991,-500.0,0.00019821,7]
[347475439,1735851043000,-500.0,0.00019821,7]
[347475440,1735851043010,-500.0,0.00019821,7]
[347475441,1735851043019,-500.0,0.00019821,7]
[347475442,1735851043029,-565.47,0.00019821,7]
[347475443,1735851043039,-500.0,0.00019821,7]
[347475444,1735851043049,-7372.56849085,0.000199,2]
[347475445,1735851043058,-500.0,0.00019999,3]
[347475446,1735851043068,-36336.32471,0.0002,2]
[347475447,1735851043078,-713.14,0.0002,3]
[347475448,1735851043087,-500.0,0.0002,3]
[347475449,1735851043097,-686.83,0.0002,30]
[347475450,1735851043106,-197.55891307,0.0002,3]
[347475451,1735851043117,-500.0,0.0002,3]
[347475452,1735851043126,-500.0,0.0002,3]
[347475453,1735851043135,-500.0,0.0002,3]
[347475454,1735851043244,-641.91,0.0002,3]
[347475455,1735851043254,-500.0,0.0002,3]
[347475456,1735851043265,-801.15,0.0002,3]
[347475457,1735851043276,-500.0,0.0002,3]
[347475458,1735851043286,-500.0,0.0002,3]
[347475459,1735851043295,-500.0,0.0002,3]
[347475460,1735851043304,-499.33397185,0.0002,3]
[347475462,1735851043314,-536.97,0.0002,3]
[347475464,1735851043323,-500.0,0.0002,3]
[347475466,1735851043333,-500.0,0.0002,3]
[347475467,1735851043342,-500.0,0.0002,3]
[347475468,1735851043352,-14335.29,0.0002,3]
[347475469,1735851043362,-1213.81,0.0002,3]
[347475470,1735851043371,-500.0,0.0002,3]
[347475471,1735851043381,-3453.29,0.0002,3]
[347475472,1735851043390,-500.0,0.0002,3]
[347475473,1735851043401,-683.2,0.0002,3]
[347475474,1735851043410,-1552.34,0.0002,3]
[347475475,1735851043420,-633.84,0.0002,3]
[347475476,1735851043430,-500.0,0.0002,3]
[347475477,1735851043440,-500.0,0.0002,3]
[347475478,1735851043449,-221.71773587,0.0002,3]
[347475479,1735851043459,-500.0,0.0002,3]
[347475480,1735851043469,-548.78,0.0002,3]
[347475481,1735851043478,-631.51,0.0002,2]
[347475482,1735851043488,-500.0,0.0002,3]
[347475483,1735851043498,-967.16,0.0002,3]
[347475484,1735851043507,-2884.33,0.0002,3]
[347475486,1735851043516,-643.02,0.0002,3]
[347475487,1735851043526,-500.0,0.0002,3]
[347475488,1735851043535,-166.64,0.0002,3]
[347475490,1735851043544,-500.0,0.0002,3]
[347475492,1735851043553,-566.68,0.0002,3]
[347475493,1735851043562,-1039.17,0.0002,3]
[347475494,1735851043571,-500.0,0.0002,3]
[347475495,1735851043580,-3385.58,0.0002,3]
[347475497,1735851043590,-500.0,0.0002,3]
[347475498,1735851043599,-500.0,0.0002,3]
[347475499,1735851043608,-1666.93,0.0002,3]
[347475500,1735851043618,-500.0,0.0002,3]
[347475502,1735851043627,-500.0,0.0002,3]
[347475504,1735851043636,-500.0,0.0002,3]
[347475506,1735851043646,-1173.72,0.0002,3]
[347475508,1735851043656,-513.23,0.0002,3]
[347475509,1735851043665,-2064.1,0.0002,3]
[347475510,1735851043674,-500.0,0.0002,3]
[347475512,1735851043683,-500.0,0.0002,3]
[347475513,1735851043692,-500.0,0.0002,3]
[347475515,1735851043701,-500.0,0.0002,3]
[347475517,1735851043710,-153.6137553,0.0002,2]
[347475519,1735851043719,-428.9556674,0.0002,2]
[347475521,1735851043728,-153.0,0.0002,2]
[347475522,1735851043739,-153.0,0.0002,2]
[347475523,1735851043748,-7372.5684906,0.00020003,2]
[347475524,1735851043756,-7372.5684906,0.00020107,2]
[347475525,1735851043766,-153.0,0.0002011,2]
[347475526,1735851043775,-153.0,0.0002011,2]
[347475527,1735851043784,-153.0,0.0002011,2]
[347475528,1735851043793,-153.0,0.00020137,2]
[347475529,1735851043802,-153.0,0.00020137,2]
[347475530,1735851043811,-11665.95116444,0.00020157,2]
[347475531,1735851043820,-7372.5684906,0.0002021,2]
[347475532,1735851043829,-500.0,0.00020273,2]
[347475533,1735851043838,-1441.47313,0.00020273,2]
[347475534,1735851043847,-1441.47313,0.00020273,2]
[347475535,1735851043856,-151.0,0.00020273,2]
[347475536,1735851043866,-713.14,0.00020273,3]
[347475537,1735851043874,-380.44,0.00020273,3]
[347475538,1735851043884,-500.0,0.00020273,3]
[347475539,1735851043894,-500.0,0.00020273,3]
[347475540,1735851043903,-500.0,0.00020273,3]
[347475541,1735851043912,-641.91,0.00020273,3]
[347475542,1735851043922,-500.0,0.00020273,3]
[347475543,1735851043931,-801.15,0.00020273,3]
[347475544,1735851043944,-300.00458848,0.00020273,3]
[347475545,1735851043954,-500.0,0.00020273,3]
[347475546,1735851043963,-500.0,0.00020273,3]
[347475547,1735851043972,-536.97,0.00020273,3]
[347475548,1735851043983,-500.0,0.00020273,3]
[347475549,1735851043993,-433.0,0.00020273,3]
[347475550,1735851044002,-14335.29,0.00020273,3]
[347475551,1735851044011,-1213.81,0.00020273,3]
[347475552,1735851044021,-500.0,0.00020273,3]
[347475553,1735851044030,-3453.29,0.00020273,3]
[347475554,1735851044039,-500.0,0.00020273,3]
[347475555,1735851044048,-151.0,0.00020273,2]
[347475556,1735851044058,-683.2,0.00020273,3]
[347475557,1735851044067,-1552.34,0.00020273,3]
[347475558,1735851044076,-633.84,0.00020273,3]
[347475559,1735851044085,-153.697083,0.00020273,2]
[347475560,1735851044094,-500.0,0.00020273,3]
[347475561,1735851044104,-500.0,0.00020273,3]
[347475562,1735851044113,-500.0,0.00020273,3]
[347475563,1735851044123,-548.78,0.00020273,3]
[347475564,1735851044131,-631.51,0.00020273,2]
[347475565,1735851044141,-499.0,0.00020273,2]
[347475566,1735851044150,-967.16,0.00020273,3]
[347475567,1735851044159,-2884.33,0.00020273,3]
[347475568,1735851044169,-643.02,0.00020273,3]
[347475569,1735851044178,-500.0,0.00020273,3]
[347475570,1735851044188,-151.0,0.00020273,2]
[347475571,1735851044198,-500.0,0.00020273,3]
[347475572,1735851044207,-566.68,0.00020273,3]
[347475573,1735851044216,-1039.17,0.00020273,3]
[347475574,1735851044225,-339.34,0.00020273,3]
[347475575,1735851044234,-3385.58,0.00020273,3]
[347475576,1735851044243,-500.0,0.00020273,3]
[347475577,1735851044252,-151.0,0.00020273,2]
[347475578,1735851044261,-381.56431933,0.00020273,3]
[347475579,1735851044271,-1666.93,0.00020273,3]
[347475580,1735851044281,-500.0,0.00020273,3]
[347475581,1735851044290,-500.0,0.00020273,3]
[347475582,1735851044299,-151.0,0.00020273,2]
[347475583,1735851044308,-151.0,0.00020273,2]
[347475584,1735851044317,-1173.72,0.00020273,3]
[347475585,1735851044327,-513.23,0.00020273,3]
[347475586,1735851044336,-2064.1,0.00020273,3]
[347475587,1735851044345,-151.0,0.00020273,2]
[347475588,1735851044354,-500.0,0.00020273,3]
[347475589,1735851044363,-592.46,0.00020273,3]
[347475590,1735851044372,-500.0,0.00020273,3]
[347475591,1735851044381,-156.3,0.00020298,5]
[347475592,1735851044391,-10846.51702306,0.000203,2]
[347475593,1735851044400,-10846.51702306,0.000203,2]
[347475594,1735851044409,-10846.51702306,0.000203,2]
[347475595,1735851044418,-10846.51702306,0.000203,2]
[347475596,1735851044428,-13806.45694483,0.000203,2]
[347475597,1735851044437,-293.496054,0.000203,2]
[347475598,1735851044446,-293.496054,0.000203,2]
[347475599,1735851044456,-373.08824713,0.00020312,2]
[347475600,1735851044465,-500.0,0.00020312,2]
[347475601,1735851044475,-500.0,0.00020312,2]
[347475602,1735851044484,-500.0,0.00020312,2]
[347475603,1735851044494,-359.51163031,0.00020312,2]
[347475604,1735851044504,-500.0,0.00020312,2]
[347475605,1735851044514,-500.0,0.00020312,2]
[347475606,1735851044523,-616.13333607,0.00020312,2]
[347475607,1735851044533,-7372.5684906,0.00020314,2]
[347475608,1735851044542,-1205.270441,0.00020314,2]
[347475609,1735851044551,-1205.270441,0.00020314,2]
[347475610,1735851044561,-151.0,0.00020314,2]
[347475611,1735851044570,-1904.842293,0.00020314,2]
[347475612,1735851044580,-151.0,0.00020314,2]
[347475613,1735851044589,-1904.842293,0.00020314,2]
[347475614,1735851044598,-151.0,0.00020314,2]
[347475615,1735851044607,-151.0,0.00020314,2]
[347475616,1735851044617,-151.0,0.00020314,2]
[347475617,1735851044626,-178.064338,0.00020314,2]
[347475618,1735851044636,-795.087862,0.00020314,2]
[347475619,1735851044645,-795.087862,0.00020314,2]
[347475620,1735851044654,-151.0,0.00020314,2]
[347475621,1735851044663,-151.0,0.00020314,2]
[347475622,1735851044673,-1302.6187051,0.00020341,2]
[347475623,1735851044682,-304.159792,0.00020355,2]
[347475624,1735851044691,-304.159792,0.00020355,2]
[347475625,1735851044700,-566.016629,0.00020355,2]
[347475626,1735851044709,-566.016629,0.00020355,2]
[347475627,1735851044719,-11665.95116445,0.00020363,2]
[347475628,1735851044729,-151.0,0.00020374,2]
[347475629,1735851044738,-257.717704,0.00020374,2]
[347475630,1735851044747,-257.717704,0.00020374,2]
[347475631,1735851044757,-151.0,0.00020374,2]
[347475632,1735851044767,-151.0,0.00020374,2]
[347475633,1735851044777,-1078.58166765,0.00020379,2]
[347475634,1735851044786,-151.0,0.00020417,2]
[347475635,1735851044796,-151.0,0.00020417,2]
[347475636,1735851044805,-7372.5684906,0.00020417,2]
[347475637,1735851044815,-400.0,0.00020447,2]
[347475638,1735851044826,-1441.47313,0.000205,2]
[347475639,1735851044835,-1441.47313,0.000205,2]
[347475640,1735851044845,-151.0,0.000205,2]
[347475641,1735851044854,-304.159792,0.000205,2]
[347475642,1735851044863,-304.159792,0.000205,2]
[347475643,1735851044872,-150.0,0.000205,2]
[347475644,1735851044881,-566.016629,0.000205,2]
[347475645,1735851044891,-566.016629,0.000205,2]
[347475646,1735851044900,-150.0,0.000205,2]
[347475647,1735851044909,-151.0,0.000205,2]
[347475648,1735851044919,-7448.0021065,0.000205,2]
[347475649,1735851044928,-151.667471,0.000205,2]
[347475650,1735851044940,-151.0,0.000205,2]
[347475651,1735851044949,-151.0,0.000205,2]
[347475652,1735851044959,-180.396715,0.00020521,2]
[347475653,1735851044968,-7372.5684906,0.00020521,2]
[347475654,1735851044979,-151.0,0.00020523,2]
[347475655,1735851044992,-151.0,0.00020546,2]
[347475656,1735851045002,-500.0,0.00020546,3]
[347475657,1735851045012,-500.0,0.00020546,3]
[347475658,1735851045022,-500.0,0.00020546,3]
[347475659,1735851045031,-500.0,0.00020546,3]
[347475660,1735851045040,-151.0,0.00020547,2]
[347475661,1735851045050,-4921.59023,0.00020547,2]
[347475662,1735851045059,-4921.59023,0.00020547,2]
[347475663,1735851045069,-2290.830262,0.00020547,2]
[347475664,1735851045078,-2290.830262,0.00020547,2]
[347475665,1735851045087,-304.159792,0.00020547,2]
[347475666,1735851045096,-304.159792,0.00020547,2]
[347475667,1735851045106,-713.14,0.00020547,3]
[347475668,1735851045115,-500.0,0.00020547,3]
[347475669,1735851045124,-500.0,0.00020547,3]
[347475670,1735851045133,-641.91,0.00020547,3]
[347475671,1735851045143,-500.0,0.00020547,3]
[347475672,1735851045152,-801.15,0.00020547,3]
[347475673,1735851045162,-278.90573611,0.00020547,3]
[347475674,1735851045172,-500.0,0.00020547,3]
[347475675,1735851045181,-500.0,0.00020547,3]
[347475676,1735851045192,-150.06,0.00020547,3]
[347475677,1735851045201,-150.26356785,0.00020547,3]
[347475678,1735851045210,-150.06,0.00020547,3]
[347475679,1735851045219,-500.0,0.00020547,3]
[347475680,1735851045228,-536.97,0.00020547,3]
[347475681,1735851045237,-150.06,0.00020547,3]
[347475682,1735851045247,-500.0,0.00020547,3]
[347475683,1735851045256,-150.37765105,0.00020547,3]
[347475684,1735851045265,-14335.29,0.00020547,3]
[347475685,1735851045274,-1213.81,0.00020547,3]
[347475686,1735851045284,-500.0,0.00020547,3]
[347475687,1735851045294,-3453.29,0.00020547,3]
[347475688,1735851045303,-541.18723672,0.00020547,3]
[347475689,1735851045312,-683.2,0.00020547,3]
[347475690,1735851045322,-1552.34,0.00020547,3]
[347475691,1735851045331,-633.84,0.00020547,3]
[347475692,1735851045340,-500.0,0.00020547,3]
[347475693,1735851045350,-500.0,0.00020547,3]
[347475694,1735851045359,-1157.271128,0.00020547,2]
[347475695,1735851045369,-212.3175872,0.00020547,3]
[347475696,1735851045378,-1157.271128,0.00020547,2]
[347475697,1735851045387,-548.78,0.00020547,3]
[347475698,1735851045396,-631.51,0.00020547,2]
[347475699,1735851045406,-967.16,0.00020547,3]
[347475700,1735851045415,-2884.33,0.00020547,3]
[347475701,1735851045424,-643.02,0.00020547,3]
[347475702,1735851045434,-500.0,0.00020547,3]
[347475703,1735851045443,-500.0,0.00020547,3]
[347475704,1735851045552,-566.68,0.00020547,3]
[347475705,1735851045561,-1039.17,0.00020547,3]
[347475706,1735851045571,-500.0,0.00020547,3]
[347475707,1735851045580,-3385.58,0.00020547,3]
[347475708,1735851045590,-1666.93,0.00020547,3]
[347475709,1735851045599,-500.0,0.00020547,3]
[347475710,1735851045608,-500.0,0.00020547,3]
[347475711,1735851045618,-500.0,0.00020547,3]
[347475712,1735851045628,-150.06,0.00020547,3]
[347475713,1735851045637,-150.06,0.00020547,2]
[347475714,1735851045646,-500.0,0.00020547,3]
[347475715,1735851045655,-163.80954025,0.00020547,3]
[347475716,1735851045664,-293.496054,0.00020547,2]
[347475717,1735851045673,-500.0,0.00020547,3]
[347475718,1735851045683,-1173.72,0.00020547,3]
[347475719,1735851045692,-293.496054,0.00020547,2]
[347475720,1735851045701,-513.23,0.00020547,3]
[347475721,1735851045711,-500.0,0.00020547,3]
[347475722,1735851045720,-150.06,0.00020547,2]
[347475723,1735851045729,-500.0,0.00020547,3]
[347475724,1735851045741,-2064.1,0.00020547,3]
[347475725,1735851045750,-500.0,0.00020547,3]
[347475726,1735851045759,-500.0,0.00020547,3]
[347475727,1735851045768,-500.0,0.00020547,3]
[347475728,1735851045777,-163.27063539,0.00020547,3]
[347475729,1735851045787,-500.0,0.00020547,2]
[347475730,1735851045796,-500.0,0.00020547,3]
[347475731,1735851045805,-173.00039265,0.00020547,3]
[347475732,1735851045814,-155.33537037,0.00020547,3]
[347475733,1735851045823,-156.3,0.00020564,6]
[347475734,1735851045832,-8563.98,0.000206,2]
[347475735,1735851045841,-151.0,0.000206,2]
[347475736,1735851045850,-151.0,0.000206,2]
[347475737,1735851045859,-618.0,0.000206,2]
[347475738,1735851045868,-500.0,0.00020609,3]
[347475739,1735851045877,-3153.48437821,0.0002061,2]
[347475740,1735851045887,-1205.270441,0.00020612,2]
[347475741,1735851045895,-1205.270441,0.00020612,2]
[347475742,1735851045905,-151.0,0.00020612,2]
[347475743,1735851045914,-1904.842293,0.00020612,2]
[347475744,1735851045923,-155.880411,0.00020612,2]
[347475745,1735851045932,-1904.842293,0.00020612,2]
[347475746,1735851045945,-151.0,0.00020612,2]
[347475747,1735851045954,-151.0,0.00020612,2]
[347475748,1735851045963,-151.0,0.00020612,2]
[347475749,1735851045971,-795.087862,0.00020612,2]
[347475750,1735851045982,-795.087862,0.00020612,2]
[347475751,1735851045993,-151.0,0.00020612,2]
[347475752,1735851046002,-151.0,0.00020612,2]
[347475753,1735851046013,-151.0,0.00020612,2]
[347475754,1735851046023,-21138.53065482,0.00020624,2]
[347475755,1735851046032,-36384.38791539,0.00020624,2]
[347475769,1735851046619,-565.80723891,0.00018986,2]
[347475770,1735851046631,-389.80150154,0.00019178,2]
[347475771,1735851046640,-500.0,0.00020273,3]
[347475772,1735851046649,-150.06,0.00020547,3]
[347475773,1735851046658,-500.0,0.00020547,3]
[347475774,1735851046667,-135618.11619403,0.00020624,2]
[347475775,1735851046676,-7372.5684906,0.00020624,2]
[347475776,1735851046686,-151.0,0.00020689,2]
[347475777,1735851046695,-151.0,0.0002069,2]
[347475778,1735851046704,-304.159792,0.0002069,2]
[347475779,1735851046713,-304.159792,0.0002069,2]
[347475780,1735851046722,-151.0,0.000207,4]
[347475781,1735851046731,-352.6747562,0.00020712,2]
[347475782,1735851046741,-352.6747562,0.00020712,2]
[347475783,1735851046750,-156.6696608,0.00020712,2]
[347475784,1735851046759,-180.396715,0.00020712,2]
[347475785,1735851046768,-3000.0,0.00020721,2]
[347475786,1735851046777,-7372.5684906,0.00020728,2]
[347475787,1735851046787,-151.0,0.00020728,2]
[347475788,1735851046796,-151.0,0.00020728,2]
[347475789,1735851046805,-151.0,0.00020728,2]
[347475790,1735851046814,-151.0,0.00020786,2]
[347475791,1735851046823,-257.717704,0.00020786,2]
[347475792,1735851046832,-257.717704,0.00020786,2]
[347475793,1735851046842,-151.0,0.00020786,2]